fUSD/lending_fUSD_20240414
["ID","MTS","AMOUNT","RATE_DAILY","PERIOD"]
[322562160,1713064237783,-48804.19148131,0.000209,2]
[322562161,1713064237793,-1000.0,0.000209,2]
[322562162,1713064237803,-425.444,0.000209,2]
[322562163,1713064237812,-4028.3225,0.000209,2]
[322562164,1713064237822,-452.2499,0.000209,2]
[322562165,1713064237832,-161.4947156,0.000209,2]
[322562166,1713064237842,-504.64655093,0.000209,2]
[322562167,1713064237851,-10000.0,0.000209,2]
[322562168,1713064237860,-4858.65726769,0.000209,2]
[322562169,1713064237869,-12808.3271,0.000209,2]
[322562170,1713064237879,-7500.0,0.000209,2]
[322562171,1713064237888,-3676.19685041,0.000209,2]
[322562172,1713064237897,-3676.19685025,0.000209,2]
[322562173,1713064237907,-3676.19685025,0.000209,2]
[322562174,1713064237916,-3676.19685025,0.000209,2]
[322562175,1713064237926,-3676.19685025,0.000209,2]
[322562176,1713064237935,-3676.19685025,0.000209,2]
[322562177,1713064237945,-3676.19685025,0.000209,2]
[322562178,1713064237955,-2579.80755222,0.000209,2]
[322562179,1713064237965,-3676.19685025,0.000209,2]
[322562180,1713064237975,-3676.19685025,0.000209,2]
[322562181,1713064237988,-3676.19685025,0.000209,2]
[322562182,1713064237998,-3676.19685025,0.000209,2]
[322562184,1713064238009,-3676.19685025,0.000209,2]
[322562186,1713064238018,-3676.19685025,0.000209,2]
[322562188,1713064238028,-3676.19685025,0.000209,2]
[322562190,1713064238039,-48524.25816271,0.000209,2]
[322562192,1713064238049,-3676.19685025,0.000209,2]
[322562194,1713064238060,-3676.19685025,0.000209,2]
[322562196,1713064238071,-3676.19685025,0.000209,2]
[322562198,1713064238081,-650.2969925,0.000209,2]
[322562200,1713064238094,-3676.19685025,0.000209,2]
[322562202,1713064238105,-3676.19685025,0.000209,2]
[322562204,1713064238115,-3676.19685025,0.000209,2]
[322562206,1713064238126,-1784.69324446,0.000209,2]
[322562208,1713064238137,-4878.17854394,0.000209,2]
[322562210,1713064238147,-330.52334504,0.000209,2]
[322562212,1713064238157,-175.59342149,0.000209,2]
[322562214,1713064238167,-230.58,0.00020951,2]
[322562215,1713064238178,-4695.6356095,0.0002098,2]
[322562217,1713064238189,-228.49044583,0.0002099,2]
[322562219,1713064238199,-208.59338351,0.00020998,2]
[322562222,1713064238209,-1930.76020844,0.00020998,2]
[322562223,1713064238220,-4193.92588451,0.00020998,2]
[322562226,1713064238233,-1140.92588875,0.00020998,2]
[322562228,1713064238245,-159.10069346,0.00020998,2]
[322562230,1713064238256,-237.8508185,0.00020998,2]
[322562232,1713064238266,-650.84667885,0.00020998,2]
[322562234,1713064238277,-690.0335849,0.00020999,2]
[322562235,1713064238288,-313.3556484,0.00020999,2]
[322562237,1713064238298,-319.34274961,0.00020999,2]
[322562239,1713064238308,-610.58536035,0.00021,2]
[322562241,1713064238318,-10581742.47600164,0.00021,2]
[322562319,1713064240035,-13141276.2216504,0.00021,2]
[322562324,1713064240097,-601.8263471,0.00021,2]
[322562327,1713064240126,-1425.94447234,0.00021,2]
[322562330,1713064240140,-1057.88781505,0.00021,2]
[322562332,1713064240154,-428.61941707,0.00021,2]
[322562334,1713064240168,-315.19030927,0.00021,2]
[322562337,1713064240188,-480.69772023,0.00021,2]
[322562339,1713064240201,-1220.20775906,0.00021,2]
[322562341,1713064240215,-406.46916604,0.00021,2]
[322562343,1713064240287,-16484.04267543,0.00021,2]
[322562344,1713064240357,-15187.99885899,0.00021,2]
[322562345,1713064240377,-23395.02668998,0.00021,2]
[322562346,1713064240391,-2395.07467002,0.00021,2]
[322562347,1713064240434,-3771.13190685,0.00021,2]
[322562348,1713064240667,-253.251884,0.00021,2]
[322562349,1713064240685,-496.27636977,0.00021,2]
[322562350,1713064240699,-62693.17527826,0.00021,2]
[322562351,1713064240714,-712.125,0.00021,2]
[322562352,1713064240728,-1153.5,0.00021,2]
[322562353,1713064240755,-1026.40371061,0.00021,2]
[322562354,1713064240771,-266.3926354,0.00021,2]
[322562377,1713064242755,-768.07237432,0.00021,2]
[322562442,1713064245361,-0.4899979,0.00021,2]
[322562443,1713064245384,-629.65540843,0.00021,2]
[322562444,1713064245410,-373.5132,0.00021,2]
[322562446,1713064245446,-1516115.07225125,0.00021,2]
[322562447,1713064245489,-737.29615073,0.00021,2]
[322562448,1713064245502,-3022.79332998,0.00021,2]
[322562449,1713064245514,-20977.8345,0.00021,2]
[322562450,1713064245529,-27163.01017985,0.00021,2]
[322562451,1713064245584,-63200.0,0.00021,2]
[322562452,1713064245605,-2145.10931005,0.00021,2]
[322562453,1713064245617,-1202.39817761,0.00021,2]
[322562454,1713064245676,-3693.910625,0.00021,2]
[322562455,1713064246572,-710.45387578,0.00021,2]
[322562456,1713064246584,-1114.62053763,0.00021,2]
[322562457,1713064246596,-6191.73282372,0.00021,2]
[322562458,1713064246639,-492.40673128,0.00021,2]
[322562459,1713064246652,-189203.18237632,0.00021,2]
[322562460,1713064249219,-11329.73466863,0.00021,2]
[322562461,1713064256172,150.0,0.0003,30]
[322562462,1713064323360,30000.0,0.0002,2]
[322562463,1713064344736,294.2,0.00019281,2]
[322562464,1713064410000,152.34892189,0.0002,2]
[322562475,1713065416344,400.0,0.000201,7]
[322562476,1713065418307,800.0,0.000202,7]
[322562477,1713065420472,1200.0,0.000203,7]
[322562478,1713065422488,1700.0,0.000204,7]
[322562479,1713065425046,2100.0,0.000205,7]
[322562484,1713065432303,-279.49,0.00020544,2]
[322562485,1713065432313,-820.69439298,0.00020579,2]
[322562486,1713065432331,-400.0,0.000206,7]
[322562487,1713065432346,-400.0,0.000207,7]
[322562488,1713065432356,-333.3877,0.000208,2]
[322562489,1713065432366,-213.53535358,0.000208,2]
[322562490,1713065432380,-560.99046765,0.000208,2]
[322562491,1713065432394,-225.47417877,0.000208,2]
[322562492,1713065432404,-1019.52102123,0.000208,2]
[322562493,1713065432472,-3674.90047877,0.000208,2]
[322562494,1713065432482,-3723.8232,0.000208,2]
[322562495,1713065432492,-400.0,0.000208,7]
[322562496,1713065432503,-150.0,0.000209,2]
[322562497,1713065432513,-250.0999,0.000209,2]
[322562498,1713065432523,-15161.67643123,0.000209,2]
[322562499,1713065432575,-889.30889837,0.000209,2]
[322562500,1713065432588,-629.32614,0.000209,2]
[322562501,1713065432645,-10793.97389935,0.000209,2]
[322562589,1713065440105,-3235.36463105,0.000209,2]
[322562590,1713065440575,-17493.1509,0.000209,2]
[322562591,1713065440600,-293.094,0.000209,2]
[322562592,1713065440610,-433.07381232,0.000209,2]
[322562593,1713065440623,-231.347,0.000209,2]
[322562594,1713065440638,-10613.30881069,0.000209,2]
[322562595,1713065440653,-4398.02689712,0.000209,2]
[322562596,1713065440664,-3925.0375,0.000209,2]
[322562597,1713065440676,-5354.07973342,0.000209,2]
[322562598,1713065440688,-168.32215611,0.000209,2]
[322562599,1713065440698,-400.0,0.000209,7]
[322562600,1713065440709,-319.34274961,0.00020999,2]
[322562601,1713065440721,-10535808.25592128,0.00021,2]
[322562602,1713065440735,-8717315.94654405,0.00021,2]
[322562603,1713065440746,-1430.30975011,0.00021,2]
[322562604,1713065440757,-1664698.84992469,0.00021,2]
[322562605,1713065440768,-1125.16,0.00021,2]
[322562606,1713065440779,-908.62,0.00021,2]
[322562607,1713065440790,-2119186.53622191,0.00021,2]
[322562608,1713065440801,-610.58536035,0.00021,2]
[322562609,1713065440812,-1534.83984,0.00021,2]
[322562610,1713065440823,-196.285096,0.00021096,2]
[322562611,1713065440843,-189.59,0.00021274,3]
[322562612,1713065440856,-2546.39,0.00021274,2]
[322562613,1713065440868,-8408.28,0.00021274,2]
[322562614,1713065440880,-3858.46,0.00021274,2]
[322562615,1713065440892,-499.99,0.00021274,2]
[322562616,1713065440904,-2775.29,0.00021274,2]
[322562617,1713065440915,-1193.0,0.000213,2]
[322562618,1713065440925,-2378.8440992,0.00021317,2]
[322562619,1713065440936,-820.69439298,0.00021333,2]
[322562620,1713065440947,-150.99,0.0002153,2]
[322562621,1713065440958,-673.1,0.0002153,2]
[322562622,1713065440969,-446.7,0.0002153,2]
[322562623,1713065440979,-150.99,0.0002153,2]
[322562624,1713065440991,-506.09212047,0.00021897,2]
[322562625,1713065441001,-150.0,0.000219,2]
[322562626,1713065441012,-152.76,0.00021918,2]
[322562627,1713065441022,-196.285096,0.00021918,2]
[322562628,1713065441032,-341.70338379,0.00021996,2]
[322562629,1713065441043,-155.87053552,0.00021996,2]
[322562630,1713065441052,-1053.33696157,0.00021996,2]
[322562631,1713065441062,-156.49216687,0.00021996,2]
[322562632,1713065441073,-377.20223171,0.00021996,2]
[322562633,1713065441083,-302.97447136,0.00021996,2]
[322562634,1713065441093,-493.48153991,0.00021996,2]
[322562635,1713065441103,-156.34978478,0.00021996,2]
[322562636,1713065441113,-2856.19584635,0.00021996,2]
[322562637,1713065441123,-228.8111743,0.00021996,2]
[322562638,1713065441133,-712.53443636,0.00021996,2]
[322562639,1713065441143,-550.63356813,0.00021996,2]
[322562640,1713065441153,-363.56826722,0.00021996,2]
[322562641,1713065441163,-237.30984916,0.00021996,2]
[322562642,1713065441172,-156.9377342,0.00021996,2]
[322562643,1713065441182,-155.2404315,0.00021996,2]
[322562644,1713065441192,-246.25872114,0.00021997,2]
[322562645,1713065441202,-300.25169234,0.00021997,2]
[322562646,1713065441211,-2933.98968488,0.00021997,2]
[322562647,1713065441221,-1066.91066673,0.00021997,2]
[322562648,1713065441231,-245.21978849,0.00021997,2]
[322562649,1713065441241,-304.60569641,0.00021999,2]
[322562650,1713065441251,-784.24043551,0.00022,2]
[322562651,1713065441261,-199.18823605,0.00022,2]
[322562652,1713065441271,-199.18823605,0.00022,2]
[322562653,1713065441280,-199.18823605,0.00022,2]
[322562654,1713065441290,-199.18823605,0.00022,2]
[322562655,1713065441299,-199.18823605,0.00022,2]
[322562656,1713065441309,-199.18823605,0.00022,2]
[322562657,1713065441319,-199.18823605,0.00022,2]
[322562658,1713065441328,-199.18823605,0.00022,2]
[322562659,1713065441338,-199.18823605,0.00022,2]
[322562660,1713065441347,-199.18823605,0.00022,2]
[322562661,1713065441357,-199.18823605,0.00022,2]
[322562662,1713065441367,-199.18823605,0.00022,2]
[322562663,1713065441376,-199.18823605,0.00022,2]
[322562664,1713065441386,-199.18823605,0.00022,2]
[322562665,1713065441397,-199.18823605,0.00022,2]
[322562666,1713065441406,-199.18823605,0.00022,2]
[322562667,1713065441415,-199.18823605,0.00022,2]
[322562668,1713065441424,-199.18823605,0.00022,2]
[322562669,1713065441434,-199.18823605,0.00022,2]
[322562670,1713065441445,-199.18823605,0.00022,2]
[322562671,1713065441455,-199.18823605,0.00022,2]
[322562672,1713065441465,-199.18823605,0.00022,2]
[322562673,1713065441474,-199.18823605,0.00022,2]
[322562674,1713065441484,-199.18823605,0.00022,2]
[322562675,1713065441493,-199.18823605,0.00022,2]
[322562676,1713065441503,-199.18823605,0.00022,2]
[322562677,1713065441512,-199.18823605,0.00022,2]
[322562678,1713065441522,-199.18823605,0.00022,2]
[322562679,1713065441532,-199.18823605,0.00022,2]
[322562680,1713065441543,-199.18823605,0.00022,2]
[322562681,1713065441553,-199.18823605,0.00022,2]
[322562682,1713065441563,-199.18823605,0.00022,2]
[322562683,1713065441573,-199.18823605,0.00022,2]
[322562684,1713065441583,-199.18823605,0.00022,2]
[322562685,1713065441593,-199.18823605,0.00022,2]
[322562686,1713065441603,-199.18823605,0.00022,2]
[322562687,1713065441615,-199.18823605,0.00022,2]
[322562688,1713065441624,-199.18823605,0.00022,2]
[322562689,1713065441634,-199.18823605,0.00022,2]
[322562690,1713065441648,-199.18823605,0.00022,2]
[322562691,1713065441657,-199.18823605,0.00022,2]
[322562692,1713065441667,-199.18823605,0.00022,2]
[322562693,1713065441676,-199.18823605,0.00022,2]
[322562694,1713065441686,-199.18823605,0.00022,2]
[322562695,1713065441695,-199.18823605,0.00022,2]
[322562696,1713065441705,-199.18823605,0.00022,2]
[322562697,1713065441714,-199.18823605,0.00022,2]
[322562698,1713065441724,-199.18823605,0.00022,2]
[322562699,1713065441733,-199.18823605,0.00022,2]
[322562700,1713065441743,-199.18823605,0.00022,2]
[322562701,1713065441752,-199.18823605,0.00022,2]
[322562702,1713065441762,-199.18823605,0.00022,2]
[322562703,1713065441771,-199.18823605,0.00022,2]
[322562704,1713065441781,-199.18823605,0.00022,2]
[322562705,1713065441790,-199.18823605,0.00022,2]
[322562706,1713065441799,-199.18823605,0.00022,2]
[322562707,1713065441809,-199.18823605,0.00022,2]
[322562708,1713065441819,-199.18823605,0.00022,2]
[322562709,1713065441836,-199.18823605,0.00022,2]
[322562710,1713065441845,-199.18823605,0.00022,2]
[322562711,1713065441855,-199.18823605,0.00022,2]
[322562712,1713065441864,-199.18823605,0.00022,2]
[322562713,1713065441876,-199.18823605,0.00022,2]
[322562714,1713065441886,-199.18823605,0.00022,2]
[322562715,1713065441899,-199.18823605,0.00022,2]
[322562716,1713065441908,-199.18823605,0.00022,2]
[322562717,1713065441917,-199.18823605,0.00022,2]
[322562718,1713065441927,-199.18823605,0.00022,2]
[322562719,1713065441937,-199.18823605,0.00022,2]
[322562720,1713065441946,-199.18823605,0.00022,2]
[322562721,1713065441956,-199.18823605,0.00022,2]
[322562722,1713065441965,-199.18823605,0.00022,2]
[322562723,1713065441975,-199.18823605,0.00022,2]
[322562724,1713065441986,-199.18823605,0.00022,2]
[322562725,1713065441997,-199.18823605,0.00022,2]
[322562726,1713065442007,-199.18823605,0.00022,2]
[322562727,1713065442017,-199.18823605,0.00022,2]
[322562728,1713065442026,-199.18823605,0.00022,2]
[322562729,1713065442035,-199.18823605,0.00022,2]
[322562730,1713065442044,-199.18823605,0.00022,2]
[322562731,1713065442054,-199.18823605,0.00022,2]
[322562732,1713065442063,-199.18823605,0.00022,2]
[322562733,1713065442072,-199.18823605,0.00022,2]
[322562734,1713065442082,-199.18823605,0.00022,2]
[322562735,1713065442091,-199.18823605,0.00022,2]
[322562736,1713065442103,-199.18823605,0.00022,2]
[322562737,1713065442113,-199.18823605,0.00022,2]
[322562738,1713065442122,-199.18823605,0.00022,2]
[322562739,1713065442131,-199.18823605,0.00022,2]
[322562740,1713065442142,-199.18823605,0.00022,2]
[322562741,1713065442151,-199.18823605,0.00022,2]
[322562742,1713065442162,-199.18823605,0.00022,2]
[322562743,1713065442176,-199.18823605,0.00022,2]
[322562744,1713065442185,-199.18823605,0.00022,2]
[322562745,1713065442195,-199.18823605,0.00022,2]
[322562746,1713065442205,-199.18823605,0.00022,2]
[322562747,1713065442214,-199.18823605,0.00022,2]
[322562748,1713065442223,-199.18823605,0.00022,2]
[322562749,1713065442233,-199.18823605,0.00022,2]
[322562750,1713065442243,-199.18823605,0.00022,2]
[322562751,1713065442252,-268.05,0.00022016,2]
[322562752,1713065442262,-1487.2,0.00022035,2]
[322562753,1713065442271,-250.0,0.00022048,2]
[322562754,1713065442281,-167.0,0.00022097,2]
[322562755,1713065442291,-150.0,0.000224,2]
[322562756,1713065442300,-173.37,0.00022483,2]
[322562757,1713065442309,-1000.0,0.00022558,2]
[322562758,1713065442319,-1840.0,0.00022667,2]
[322562759,1713065442328,-503.03,0.00022709,2]
[322562760,1713065442337,-412.19,0.00022709,2]
[322562761,1713065442346,-412.19,0.00022709,2]
[322562762,1713065442355,-412.19,0.00022709,2]
[322562763,1713065442365,-426.01,0.00022709,2]
[322562764,1713065442374,-1843.38,0.00022709,2]
[322562766,1713065442383,-196.285096,0.0002274,2]
[322562768,1713065442394,-167.68,0.00022778,2]
[322562770,1713065442404,-279.49,0.00022807,2]
[322562772,1713065442413,-150.0,0.000229,2]
[322562775,1713065442423,-250.0,0.00022908,2]
[322562778,1713065442433,-550.0,0.00023,3]
[322562779,1713065442442,-1000.0,0.00023288,2]
[322562780,1713065442451,-1000.0,0.00023288,2]
[322562781,1713065442461,-1000.0,0.00023288,2]
[322562782,1713065442470,-1000.0,0.00023288,2]
[322562784,1713065442479,-679.0,0.00023288,2]
[322562786,1713065442489,-1000.0,0.00023288,2]
[322562787,1713065442498,-1086.0,0.00023288,2]
[322562788,1713065442507,-163.114,0.0002332,2]
[322562789,1713065442516,-167.0,0.00023363,2]
[322562790,1713065442526,-300.0,0.000234,2]
[322562792,1713065442535,-150.0,0.000234,2]
[322562794,1713065442544,-163.114,0.00023425,2]
[322562796,1713065442553,-200.0,0.0002345,2]
[322562797,1713065442562,-193.636,0.0002345,2]
[322562799,1713065442572,-151.014,0.0002345,2]
[322562801,1713065442581,-150.0,0.0002345,2]
[322562803,1713065442591,-151.442,0.0002345,2]
[322562805,1713065442600,-158.501,0.0002345,2]
[322562807,1713065442609,-176.228,0.0002345,2]
[322562810,1713065442618,-253.729,0.0002345,2]
[322562814,1713065442627,-263.566,0.0002345,2]
[322562818,1713065442636,-1948.0,0.0002345,2]
[322562822,1713065442648,-807.0,0.0002345,2]
[322562826,1713065442657,-292.138,0.0002345,2]
[322562829,1713065442666,-615.403,0.0002345,2]
[322562833,1713065442675,-436.0,0.0002345,2]
[322562837,1713065442684,-3043.0,0.0002345,2]
[322562841,1713065442694,-1472.0,0.0002345,2]
[322562845,1713065442703,-411.009,0.0002345,2]
[322562849,1713065442712,-293.532,0.0002345,2]
[322562852,1713065442721,-1140.0,0.0002345,2]
[322562855,1713065442730,-203.751,0.0002345,2]
[322562858,1713065442739,-253.584,0.0002345,2]
[322562861,1713065442748,-2440.0,0.0002345,2]
[322562863,1713065442758,-1646.464,0.0002345,2]
[322562865,1713065442767,-443.186,0.0002345,2]
[322562867,1713065442777,-355.0,0.0002345,2]
[322562869,1713065442786,-226.0,0.0002345,2]
[322562872,1713065442795,-1054.0,0.0002345,2]
[322562874,1713065442804,-5719.0,0.0002345,2]
[322562876,1713065442814,-461.0,0.0002345,2]
[322562878,1713065442824,-4803.0,0.0002345,2]
[322562880,1713065442838,-968.0,0.0002345,2]
[322562882,1713065442847,-2291.0,0.0002345,2]
[322562884,1713065442856,-2466.0,0.0002345,2]
[322562886,1713065442866,-37623.0,0.0002345,2]
[322562888,1713065442876,-1391.0,0.0002345,2]
[322562890,1713065442885,-1377.673,0.0002345,2]
[322562891,1713065442896,-200.0,0.00023461,2]
[322562894,1713065442905,-12585.76224199,0.000235,2]
[322562896,1713065442916,-4741.23088761,0.000235,2]
[322562898,1713065442926,-163.114,0.00023531,2]
[322562899,1713065442935,-196.285096,0.00023562,2]
[322562901,1713065442944,-163.114,0.00023639,2]
[322562902,1713065442954,-907.84,0.00023668,2]
[322562904,1713065442963,-412.19,0.00023668,2]
[322562906,1713065442973,-400.96,0.00023668,2]
[322562908,1713065442983,-907.84,0.00023668,2]
[322562909,1713065442992,-907.84,0.00023668,2]
[322562911,1713065443001,-907.84,0.00023668,2]
[322562913,1713065443010,-907.84,0.00023668,2]
[322562914,1713065443019,-1320.8,0.00023668,2]
[322562916,1713065443028,-275.76,0.00023701,2]
[322562918,1713065443038,-163.114,0.00023747,2]
[322562919,1713065443048,-163.114,0.00023856,2]
[322562921,1713065443059,-150.0,0.000239,2]
[322562923,1713065443069,-1125.16,0.00024,2]
[322562925,1713065443080,-908.62,0.00024,2]
[322562926,1713065443091,-10000.0,0.00024096,2]
[322562928,1713065443101,-167.0,0.00024349,2]
[322562930,1713065443111,-159.57,0.00024354,2]
[322562932,1713065443121,-196.285096,0.00024384,2]
[322562933,1713065443131,-150.0,0.000244,2]
[322562935,1713065443143,-300.0,0.0002477,2]
[322562937,1713065443152,-1487.2,0.00024774,2]
[322562939,1713065443162,-150.0,0.000249,2]
[322562940,1713065443171,-173.8791187,0.00025,2]
[322562942,1713065443181,-155.0,0.00025,2]
[322562944,1713065443191,-563.08685838,0.00025,2]
[322562945,1713065443201,-2605.45039561,0.00025,2]
[322562947,1713065443210,-600.0,0.00025,3]
[322562949,1713065443220,-155.0,0.00025,2]
[322562950,1713065443230,-279.49,0.00025071,2]
[322562952,1713065443240,-167.0,0.00025144,2]
[322562954,1713065443249,-196.285096,0.00025205,2]
[322562955,1713065443259,-159.57,0.00025216,2]
[322562957,1713065443269,-1000.0,0.00025378,2]
[322562959,1713065443279,-150.0,0.000254,2]
[322562961,1713065443289,-152.05,0.00025723,2]
[322562962,1713065443298,-155.16,0.00025723,2]
[322562964,1713065443307,-151.18,0.00025723,2]
[322562966,1713065443317,-150.0,0.00025723,2]
[322562968,1713065443327,-150.0,0.00025723,2]
[322562969,1713065443337,-150.0,0.00025723,2]
[322562971,1713065443346,-150.0,0.00025723,2]
[322562973,1713065443356,-150.0,0.00025723,2]
[322562975,1713065443366,-150.0,0.00025723,2]
[322562976,1713065443376,-150.0,0.00025723,2]
[322562978,1713065443386,-150.0,0.00025723,2]
[322562980,1713065443401,-150.0,0.00025723,2]
[322562982,1713065443410,-150.0,0.00025723,2]
[322562984,1713065443420,-150.0,0.00025723,2]
[322562985,1713065443429,-150.0,0.00025723,2]
[322562987,1713065443439,-265.86,0.00025723,2]
[322562989,1713065443449,-150.0,0.00025723,2]
[322562991,1713065443458,-166.78,0.00025723,2]
[322562992,1713065443467,-150.0,0.00025723,2]
[322562994,1713065443476,-150.0,0.00025723,2]
[322562996,1713065443486,-162.41,0.00025723,2]
[322562998,1713065443495,-444.69,0.00025723,2]
[322563000,1713065443505,-150.0,0.00025723,2]
[322563002,1713065443515,-162.41,0.00025723,2]
[322563005,1713065443525,-349.74,0.00025723,2]
[322563007,1713065443535,-300.39,0.00025756,2]
[322563009,1713065443545,-448.88,0.00025756,2]
[322563010,1713065443554,-17641.0,0.000258,5]
[322563011,1713065443564,-1125.16,0.000259,2]
[322563012,1713065443574,-908.62,0.000259,2]
[322563013,1713065443583,-150.0,0.000259,2]
[322563014,1713065443592,-1534.83984,0.00026,2]
[322563015,1713065443602,-196.285096,0.00026027,2]
[322563017,1713065443611,-521.03,0.00026073,2]
[322563020,1713065443622,-159.57,0.00026077,2]
[322563023,1713065443631,-200.0,0.00026089,2]
[322563026,1713065443641,-200.0,0.00026089,2]
[322563029,1713065443652,-200.0,0.00026089,2]
[322563032,1713065443661,-200.0,0.0002609,2]
[322563035,1713065443670,-200.0,0.0002609,2]
[322563039,1713065443680,-500.0,0.0002609,2]
[322563042,1713065443689,-500.0,0.0002609,2]
[322563045,1713065443698,-200.0,0.0002609,2]
[322563048,1713065443707,-200.0,0.0002609,2]
[322563051,1713065443716,-412.19,0.0002612,2]
[322563054,1713065443724,-412.19,0.0002612,2]
[322563056,1713065443733,-907.84,0.0002612,2]
[322563059,1713065443742,-412.19,0.0002612,2]
[322563062,1713065443751,-907.84,0.0002612,2]
[322563090,1713065443919,-907.84,0.0002612,2]
[322563093,1713065443953,-189.58,0.0002612,2]
[322563095,1713065443963,-907.84,0.0002612,2]
[322563097,1713065443972,-907.84,0.0002612,2]
[322563099,1713065443982,-907.84,0.0002612,2]
[322563101,1713065443991,-907.84,0.0002612,2]
[322563103,1713065444001,-907.84,0.0002612,2]
[322563105,1713065444011,-665.27,0.0002612,2]
[322563107,1713065444021,-167.041411,0.00026198,5]
[322563109,1713065444030,-3071.93821597,0.00026215,2]
[322563111,1713065444040,-791.34227455,0.00026215,2]
[322563113,1713065444050,-153.3438772,0.00026215,2]
[322563115,1713065444059,-795.74929763,0.00026215,2]
[322563117,1713065444068,-206.89270915,0.00026299,2]
[322563119,1713065444079,-5835.31046315,0.00026299,2]
[322563121,1713065444088,-2195.68970431,0.00026299,2]
[322563123,1713065444098,-351138.27150729,0.000263,2]
[322563125,1713065444107,-7897.1258511,0.00026304,2]
[322563126,1713065444116,-3115.3080981,0.00026304,2]
[322563128,1713065444126,-19707.09229967,0.00026322,2]
[322563134,1713065444169,-19416.71315653,0.00026322,2]
[322563136,1713065444178,-167.0,0.00026358,2]
[322563138,1713065444188,-503.09515026,0.00026391,2]
[322563140,1713065444197,-19105.28299314,0.000264,2]
[322563142,1713065444207,-150.0,0.000264,2]
[322563144,1713065444216,-150.0,0.000264,2]
[322563146,1713065444225,-150.0,0.0002645,2]
[322563148,1713065444238,-150.0,0.0002645,2]
[322563150,1713065444247,-150.0,0.0002645,2]
[322563151,1713065444256,-150.0,0.0002645,2]
[322563153,1713065444266,-150.0,0.0002645,2]
[322563155,1713065444275,-150.0,0.0002645,2]
[322563157,1713065444285,-150.0,0.0002645,2]
[322563158,1713065444294,-1948.0,0.0002645,2]
[322563159,1713065444308,-807.0,0.0002645,2]
[322563160,1713065444318,-280.0,0.0002645,2]
[322563161,1713065444328,-608.0,0.0002645,2]
[322563162,1713065444337,-436.0,0.0002645,2]
[322563163,1713065444347,-3043.0,0.0002645,2]
[322563164,1713065444357,-1472.0,0.0002645,2]
[322563165,1713065444366,-399.0,0.0002645,2]
[322563166,1713065444376,-150.0,0.0002645,2]
[322563167,1713065444385,-1140.0,0.0002645,2]
[322563168,1713065444397,-150.0,0.0002645,2]
[322563169,1713065444406,-2440.0,0.0002645,2]
[322563170,1713065444416,-1637.0,0.0002645,2]
[322563171,1713065444426,-443.0,0.0002645,2]
[322563172,1713065444436,-355.0,0.0002645,2]
[322563173,1713065444446,-214.0,0.0002645,2]
[322563174,1713065444455,-1054.0,0.0002645,2]
[322563175,1713065444466,-5719.0,0.0002645,2]
[322563176,1713065444476,-461.0,0.0002645,2]
[322563177,1713065444486,-4803.0,0.0002645,2]
[322563178,1713065444495,-968.0,0.0002645,2]
[322563179,1713065444505,-2291.0,0.0002645,2]
[322563180,1713065444515,-2466.0,0.0002645,2]
[322563181,1713065444524,-37623.0,0.0002645,2]
[322563182,1713065444533,-1391.0,0.0002645,2]
[322563183,1713065444545,-1315.0,0.0002645,2]
[322563184,1713065444555,-309.00678998,0.00026498,7]
[322563185,1713065444564,-3139.77622742,0.00026499,2]